bitfinex-derivatives/quotes_SOLF0:USTF0_20250421
["timestamp","ask_amount","ask_price","bid_price","bid_amount"]
[1745245615657,6.591e-05,139.55,139.52,7.21825489]
[1745245615854,6.591e-05,139.55,139.52,0.05145489]
[1745245616060,6.591e-05,139.55,139.54,7.1662]
[1745245616258,6.591e-05,139.55,139.54,56.22531868]
[1745245616454,6.591e-05,139.55,139.52,0.05145489]
[1745245616669,35.18,139.54,139.42,49.05911868]
[1745245616856,7.1668,139.53,139.45,49.05911868]
[1745245617061,567.52,139.55,139.48,7.1692]
[1745245617362,567.52,139.55,139.43,3.9388]
[1745245617562,7.167,139.53,139.45,49.05911868]
[1745245617763,0.04521832,139.5,139.48,0.04814181]
[1745245617954,7.1675,139.52,139.48,0.04814181]
[1745245618158,0.05352452,139.5,139.48,7.21714181]
[1745245619265,0.05352452,139.5,139.48,0.04814181]
[1745245619965,0.05352452,139.5,139.48,7.21694181]
[1745245620265,0.05352452,139.5,139.48,0.04814181]
[1745245620465,0.05352452,139.5,139.49,7.1688]
[1745245621567,35.18,139.6,139.48,4.03074181]
[1745245621767,7.164,139.59,139.51,49.05911868]
[1745245622064,35.18,139.6,139.51,84.23911868]
[1745245622559,35.18,139.6,139.54,0.04911851]
[1745245622764,0.05283274,139.57,139.54,0.04911851]
[1745245623864,7.21773274,139.57,139.54,7.21501851]
[1745245624168,0.05283274,139.57,139.54,0.04911851]
[1745245624567,7.21783274,139.57,139.54,0.04911851]
[1745245624868,49.05911868,139.55,139.43,35.18]
[1745245625066,49.05911868,139.52,139.46,7.1703]
[1745245625265,3.9667,139.51,139.43,35.18]
[1745245625873,3.9075,139.54,139.43,35.18]
[1745245626074,7.1659,139.55,139.52,7.1669]
[1745245626370,35.18,139.58,139.52,7.1669]
[1745245626574,7.1661,139.55,139.51,7.1677]
[1745245626873,35.18,139.58,139.48,35.18]
[1745245627171,0.05272672,139.54,139.52,0.05495105]
[1745245628968,35.23272672,139.54,139.45,35.18]
[1745245629172,35.18,139.54,139.42,53.10751868]
[1745245629365,35.18,139.54,139.47,7.1695]
[1745245629876,7.1681,139.51,139.47,7.1695]
[1745245630174,35.18,139.54,139.48,0.04922992]
[1745245630175,0.04518531,139.5,139.48,0.04922992]
[1745245630672,0.04518531,139.5,139.49,7.1685]
[1745245631067,8.531e-05,139.5,139.49,7.1685]
[1745245632869,8.531e-05,139.5,139.48,0.04922992]
[1745245633374,8.531e-05,139.5,139.48,7.21822992]
[1745245633575,8.531e-05,139.5,139.48,0.04922992]
[1745245633975,8.531e-05,139.5,139.49,7.1688]
[1745245640580,8.531e-05,139.5,139.48,0.04922992]
[1745245641279,8.531e-05,139.5,139.49,7.1688]
[1745245641685,8.531e-05,139.5,139.48,0.04922992]
[1745245641880,8.531e-05,139.5,139.48,7.21822992]
[1745245642081,8.531e-05,139.5,139.48,0.04922992]
[1745245642483,8.531e-05,139.5,139.49,7.1688]
[1745245646387,8.531e-05,139.5,139.48,7.21832992]
[1745245646988,8.531e-05,139.5,139.49,7.1688]
[1745245647189,8.531e-05,139.5,139.48,0.04922992]
[1745245648985,8.531e-05,139.5,139.48,7.21852992]
[1745245649488,8.531e-05,139.5,139.48,0.04922992]
[1745245649683,7.1688,139.49,139.48,0.04922992]
[1745245649890,8.531e-05,139.5,139.48,0.04922992]
[1745245650187,7.16858531,139.5,139.48,0.04922992]
[1745245650391,8.531e-05,139.5,139.36,361.0]
[1745245650585,12.4717,139.51,139.39,64.32788113]
[1745245650781,7.1696,139.48,139.44,7.171]
[1745245650985,12.4717,139.51,139.44,7.171]
[1745245651490,12.4717,139.51,139.43,7.1715]
[1745245651790,7.1698,139.47,139.46,0.05303625]
[1745245651990,7.1698,139.47,139.39,64.32788113]
[1745245652187,7.1707,139.46,139.39,64.32788113]
[1745245652490,34.22,139.48,139.39,30.10788113]
[1745245652688,7.1706,139.46,139.42,7.172]
[1745245652889,34.22,139.48,139.39,30.10788113]
[1745245653091,0.04956787,139.45,139.43,0.04833945]
[1745245653991,7.22066787,139.45,139.43,0.04833945]
[1745245655292,0.04956787,139.45,139.43,0.04833945]
[1745245655991,0.04956787,139.45,139.44,7.1713]
[1745245656699,0.04956787,139.45,139.43,0.04833945]
[1745245657188,0.04956787,139.45,139.44,7.1713]
[1745245660401,0.04956787,139.45,139.43,7.21993945]
[1745245660696,0.04956787,139.45,139.43,0.04833945]
[1745245661795,34.22,139.44,139.34,601.82]
[1745245662096,7.8429,139.43,139.32,30.10788113]
[1745245662396,7.8429,139.43,139.31,42.0551]
[1745245662592,30.10788113,139.41,139.31,42.0551]
[1745245662896,7.2215165,139.37,139.35,0.04986888]
[1745245663095,0.0462165,139.37,139.35,0.04986888]
[1745245663496,7.1755,139.36,139.35,0.04986888]
[1745245663698,7.1755,139.36,139.29,3.9135]
[1745245663897,4.2118165,139.37,139.29,3.9135]
[1745245664097,4.1656,139.37,139.33,7.1767]
[1745245664597,34.24,139.36,139.28,34.22]
[1745245664897,0.0492019,139.33,139.31,0.04982984]
[1745245667100,7.1775,139.32,139.31,0.04982984]
[1745245667399,0.0492019,139.33,139.31,0.04982984]
[1745245667601,7.2266019,139.33,139.31,0.04982984]
[1745245669000,0.0492019,139.33,139.23,46.0792]
[1745245669198,30.10788113,139.34,139.23,46.0792]
[1745245669499,7.1784,139.31,139.27,7.1798]
[1745245670094,0.05348408,139.3,139.28,0.05465017]
[1745245670496,8.408e-05,139.3,139.28,0.05465017]
[1745245670698,7.1753,139.37,139.28,7.23465017]
[1745245670897,34.26,139.39,139.27,34.26]
[1745245671401,7.1754,139.37,139.33,7.1767]
[1745245671600,30.10788113,139.37,139.27,34.26]
[1745245671899,0.05509467,139.36,139.27,34.26]
[1745245672099,30.10788113,139.37,139.31,0.05148152]
[1745245672296,0.0463412,139.33,139.31,0.05148152]
[1745245672900,7.1775,139.32,139.31,0.05148152]
[1745245674004,7.2234412,139.33,139.31,0.05148152]
[1745245674198,0.0463412,139.33,139.31,0.05148152]
[1745245674496,0.0463412,139.33,139.32,7.1775]
[1745245677613,0.0463412,139.33,139.31,0.05148152]
[1745245678306,0.0463412,139.33,139.32,7.1775]
[1745245679006,0.0463412,139.33,139.31,0.05148152]
[1745245679403,0.0463412,139.33,139.31,7.22908152]
[1745245680309,0.0463412,139.33,139.31,0.05148152]
[1745245681002,37.28538113,139.32,139.31,0.05148152]
[1745245681204,30.10788113,139.32,139.24,37.2499]
[1745245681402,30.10788113,139.32,139.28,7.1792]
[1745245681611,30.10788113,139.35,139.24,37.2499]
[1745245681816,30.10788113,139.35,139.24,4.0299]
[1745245682315,30.10788113,139.3,139.28,0.05247591]
[1745245683115,7.1791,139.29,139.28,0.05247591]
[1745245683914,37.28668113,139.3,139.28,0.05247591]
[1745245684213,30.10788113,139.3,139.28,0.05247591]
[1745245684413,0.04564617,139.31,139.28,0.05247591]
[1745245684918,0.04564617,139.31,139.28,7.23207591]
[1745245685112,0.04564617,139.31,139.28,0.05247591]
[1745245685516,30.1535273,139.31,139.28,0.05247591]
[1745245685817,37.28918113,139.25,139.18,33.22]
[1745245686014,37.28918113,139.25,139.22,7.1824]
[1745245686816,37.33903403,139.25,139.22,7.23333904]
[1745245687022,0.0498529,139.25,139.22,0.05093904]
[1745245687217,391.10788113,139.34,139.23,33.22]
[1745245687417,7.1765,139.34,139.3,7.1785]
[1745245687611,78.06143113,139.37,139.28,33.22]
[1745245688113,30.10788113,139.36,139.29,7.1788]
[1745245688308,0.05116624,139.34,139.31,0.05200664]
[1745245689420,7.22776624,139.34,139.31,0.05200664]
[1745245689618,0.05116624,139.34,139.31,0.05200664]
[1745245689918,7.1783,139.31,139.28,33.22]
[1745245690118,7.1783,139.31,139.27,7.18]
[1745245690318,30.10788113,139.33,139.25,33.22]
[1745245690514,7.1778,139.32,139.28,7.1791]
[1745245690715,7.1778,139.32,139.25,33.22]
[1745245691018,7.1769,139.34,139.25,33.22]
[1745245691218,0.05254432,139.3,139.27,0.05280744]
[1745245691517,30.10788113,139.36,139.25,33.22]
[1745245691816,0.04970113,139.3,139.27,0.05105014]
[1745245692011,0.04970113,139.3,139.25,33.22]
[1745245692012,7.1766,139.34,139.25,33.22]
[1745245692214,7.1766,139.34,139.3,7.1782]
[1745245692410,0.0537086,139.31,139.26,3.8623]
[1745245692816,0.0537086,139.31,139.27,0.05040394]
[1745245693025,0.0537086,139.31,139.29,7.1787]
[1745245693218,0.0537086,139.31,139.27,0.05040394]
[1745245693516,0.0537086,139.31,139.3,7.1786]
[1745245694426,30.10788113,139.36,139.33,7.1761]
[1745245694720,7.1754,139.35,139.29,33.22]
[1745245694922,30.10788113,139.36,139.32,7.1768]
[1745245695123,10.62715,139.37,139.29,33.22]
[1745245695318,10.62715,139.37,139.3,8.2566]
[1745245695519,4.29685,139.37,139.32,0.04899948]
[1745245695829,30.10788113,139.42,139.33,33.22]
[1745245696325,7.1748,139.36,139.3,41.4766]
[1745245696842,0.05426519,139.34,139.32,0.05448304]
[1745245697730,7.1763,139.33,139.32,0.05448304]
[1745245698126,30.10788113,139.33,139.27,7.8162]
[1745245698323,30.10788113,139.33,139.27,3.9764]
[1745245698520,30.10788113,139.33,139.26,33.22]
[1745245698724,631.68788113,139.39,139.27,3.9764]
[1745245699023,631.68788113,139.39,139.31,7.1773]
[1745245699328,0.05423471,139.36,139.34,0.04817671]
[1745245699527,7.1756,139.35,139.34,0.04817671]
[1745245700225,7.22913471,139.36,139.34,0.04817671]
[1745245700430,0.05423471,139.36,139.34,0.04817671]
[1745245701123,7.1734,139.39,139.34,0.04817671]
[1745245701325,33.22,139.42,139.34,0.04817671]
[1745245701529,63.32788113,139.45,139.36,7.1745]
[1745245701730,71.02878113,139.45,139.36,7.1745]
[1745245701930,7.173,139.4,139.36,7.1745]
[1745245702130,71.02878113,139.45,139.35,37.4155]
[1745245702323,0.04781272,139.39,139.37,0.05369325]
[1745245702522,71.02878113,139.45,139.37,0.05369325]
[1745245702736,0.04981245,139.39,139.37,0.05369325]
[1745245702929,30.10788113,139.45,139.37,0.05369325]
[1745245703133,0.05280624,139.39,139.37,0.05369325]
[1745245703326,0.0511562,139.39,139.36,4.0019]
[1745245703523,0.0511562,139.39,139.37,0.04881626]
[1745245704030,7.1714,139.43,139.37,0.04881626]
[1745245704229,929.34,139.46,139.36,4.0019]
[1745245704430,929.34,139.46,139.39,7.1729]
[1745245704827,929.34,139.46,139.36,4.0019]
[1745245705131,0.05417389,139.42,139.4,0.04680614]
[1745245705833,0.05417389,139.42,139.4,7.21920614]
[1745245706030,0.05417389,139.42,139.4,0.04680614]
[1745245706528,0.05417389,139.42,139.41,7.1722]
[1745245706929,0.05417389,139.42,139.4,0.04680614]
[1745245707432,0.05417389,139.42,139.4,7.21920614]
[1745245707831,0.05417389,139.42,139.4,0.04680614]
[1745245708734,30.16205502,139.42,139.35,4.1955]
[1745245709132,7.173,139.4,139.37,7.174]
[1745245709332,0.05417389,139.42,139.35,4.1955]
[1745245709635,32.8,139.43,139.35,4.1955]
[1745245709936,0.04631043,139.4,139.37,0.04538454]
[1745245711333,0.04631043,139.4,139.39,7.1732]
[1745245713336,1.043e-05,139.4,139.39,7.1732]
[1745245713539,631.16788113,139.53,139.39,39.98]
[1745245713737,631.16788113,139.53,139.4,3.9703]
[1745245713935,7.1694,139.47,139.4,3.9703]
[1745245714137,7.1694,139.47,139.44,7.1706]
[1745245714638,0.05484254,139.47,139.44,0.05488963]
[1745245715033,7.17,139.46,139.44,0.05488963]
[1745245715638,7.1701,139.45,139.44,0.05488963]
[1745245716039,30.16272367,139.47,139.38,36.8728]
[1745245716240,30.10788113,139.44,139.39,7.173]
[1745245716632,7.172,139.42,139.39,7.1731]
[1745245716939,7.172,139.42,139.38,32.78]
[1745245717241,7.172,139.42,139.4,7.1724]
[1745245717242,0.04693191,139.42,139.4,7.1724]
[1745245717538,0.04693191,139.42,139.39,0.05437764]
[1745245717838,0.04693191,139.42,139.41,7.1722]
[1745245719439,34.16708113,139.5,139.39,3.85827764]
[1745245719634,34.16708113,139.5,139.39,3.8039]
[1745245720438,34.16708113,139.5,139.45,7.1698]
[1745245720632,0.05104566,139.46,139.45,7.1698]
[1745245720830,34.16708113,139.5,139.46,0.0504127]
[1745245720831,30.15847365,139.47,139.46,0.0504127]
[1745245721035,30.10788113,139.47,139.39,36.5839]
[1745245721236,7.1705,139.45,139.39,36.5839]
[1745245721734,7.1705,139.45,139.42,7.1713]
[1745245722039,0.05304305,139.45,139.42,0.05162106]
[1745245722239,0.05304305,139.45,139.42,7.22302106]
[1745245722440,361.0,139.51,139.43,32.78]
[1745245722636,7.1684,139.49,139.43,32.78]
[1745245723135,361.0,139.51,139.43,32.78]
[1745245723340,30.10788113,139.49,139.43,39.9509]
[1745245723535,30.10788113,139.49,139.43,32.78]
[1745245723737,0.04650298,139.47,139.45,7.22201621]
[1745245724036,0.04650298,139.47,139.45,0.05231621]
[1745245725242,0.04650298,139.47,139.46,7.1696]
[1745245725641,44.8283,139.54,139.45,0.05231621]
[1745245725840,44.8283,139.54,139.44,3.8675]
[1745245726846,0.0466427,139.5,139.48,0.05417138]
[1745245727147,0.0466427,139.5,139.49,7.1681]
[1745245727644,7.1681,139.49,139.48,0.05417138]
[1745245728539,0.0466427,139.5,139.48,0.05417138]
[1745245729545,7.1681,139.49,139.48,0.05417138]
[1745245729935,0.0466427,139.5,139.48,0.05417138]
[1745245730141,7.2143427,139.5,139.48,0.05417138]
[1745245730846,7.1681,139.49,139.48,0.05417138]
[1745245731746,30.10788113,139.49,139.42,32.78]
[1745245732246,4.0347,139.48,139.42,32.78]
[1745245732742,4.0347,139.48,139.44,0.0551166]
[1745245732945,0.048235,139.46,139.44,0.0551166]
[1745245733447,7.218135,139.46,139.44,0.0551166]
[1745245733648,0.048235,139.46,139.44,0.0551166]
[1745245734045,0.048235,139.46,139.45,7.1701]
[1745245734249,3.9305,139.52,139.44,0.0551166]
[1745245735151,7.1684,139.49,139.46,7.1693]
[1745245735353,7.21758881,139.49,139.46,7.1693]
[1745245735551,0.04918881,139.49,139.46,0.05224945]
[1745245736247,0.04918881,139.49,139.48,7.1686]
[1745245736446,8.1914,139.54,139.47,32.2]
[1745245736652,36.1305,139.56,139.47,32.2]
[1745245736948,7.1658,139.54,139.47,32.2]
[1745245737142,36.1305,139.56,139.47,32.2]
[1745245737452,7.1661,139.53,139.5,7.1673]
[1745245737650,0.05083843,139.53,139.5,7.21848528]
[1745245738040,0.05083843,139.53,139.5,0.05118528]
[1745245738650,7.1665,139.52,139.5,0.05118528]
[1745245738850,0.05083843,139.53,139.5,0.05118528]
[1745245739151,7.167,139.51,139.5,0.05118528]
[1745245739648,7.1684,139.49,139.44,32.2]
[1745245739947,62.30788113,139.52,139.44,39.3705]
[1745245740650,30.10788113,139.49,139.41,32.2]
[1745245740846,30.16158482,139.49,139.47,0.05135813]
[1745245741046,30.16158482,139.49,139.41,32.2]
[1745245741246,30.16158482,139.49,139.42,7.1714]
[1745245741549,30.16158482,139.49,139.41,32.2]
[1745245741747,7.1696,139.46,139.42,7.1714]
[1745245742050,30.10788113,139.49,139.41,32.2]
[1745245742352,7.21801568,139.45,139.43,0.05223246]
[1745245742654,0.04761568,139.45,139.43,0.05223246]
[1745245743253,7.21801568,139.45,139.43,0.05223246]
[1745245743450,0.04761568,139.45,139.43,0.05223246]
[1745245744654,1.568e-05,139.45,139.43,32.25223246]
[1745245744850,361.0,139.51,139.44,30.10788113]
[1745245745352,361.0,139.51,139.48,7.1683]
[1745245745551,361.0,139.51,139.43,62.30788113]
[1745245745749,32.2,139.57,139.43,62.30788113]
[1745245745942,7.1655,139.54,139.46,30.15584746]
[1745245746143,36.1171,139.57,139.47,32.2]
[1745245746342,36.1171,139.57,139.5,7.1674]
[1745245747046,7.1659,139.54,139.52,0.05350085]
[1745245747454,0.05433806,139.55,139.52,0.05350085]
[1745245747656,7.1655,139.54,139.52,0.05350085]
[1745245747856,0.05433806,139.55,139.52,0.05350085]
[1745245748150,7.1658,139.54,139.52,0.05350085]
[1745245749854,0.05433806,139.55,139.52,0.05350085]
[1745245750655,0.05433806,139.55,139.54,7.1655]
[1745245752456,7.6979,139.59,139.54,7.1655]
[1745245752666,8.0196,139.63,139.52,30.10788113]
[1745245752858,8.0196,139.63,139.53,3.8985]
[1745245753064,38.12748113,139.63,139.56,7.1645]
[1745245753256,38.12748113,139.63,139.54,32.18]
[1745245753563,7.1622,139.61,139.57,7.1636]
[1745245753762,0.04679846,139.6,139.57,7.21645702]
[1745245753963,0.04679846,139.6,139.57,0.05285702]
[1745245754764,0.04679846,139.6,139.59,7.1629]
[1745245754967,32.18,139.68,139.58,32.18]
[1745245755155,32.18,139.68,139.58,62.28788113]
[1745245755354,7.9703,139.69,139.64,7.1603]
[1745245755763,7.1586,139.68,139.64,7.1603]
[1745245756060,7.9703,139.69,139.63,7.1607]
[1745245756368,0.05487365,139.67,139.65,0.04546477]
[1745245760666,0.05487365,139.67,139.65,0.04546477]
[1745245760968,0.05487365,139.67,139.66,7.1593]
[1745245761669,0.05487365,139.67,139.65,7.20516477]
[1745245761873,0.05487365,139.67,139.65,0.04546477]
[1745245762471,0.05487365,139.67,139.65,7.20506477]
[1745245762665,0.05487365,139.67,139.65,0.04546477]
[1745245762871,7.1593,139.66,139.65,0.04546477]
[1745245763372,7.1593,139.66,139.59,7.1626]
[1745245763373,7.1612,139.63,139.59,7.1626]
[1745245763769,34.04828113,139.65,139.57,567.36]
[1745245764073,34.04828113,139.65,139.58,7.1632]
[1745245764369,0.05377329,139.63,139.6,0.04524959]
[1745245764972,7.21507329,139.63,139.6,0.04524959]
[1745245765168,0.05377329,139.63,139.6,0.04524959]
[1745245766172,0.05377329,139.63,139.6,31.26524959]
[1745245766770,0.05377329,139.63,139.62,7.1614]
[1745245773375,7.8494,139.73,139.66,7.1589]
[1745245773675,11.8496,139.73,139.62,30.10788113]
[1745245773978,30.10788113,139.72,139.65,7.1597]
[1745245774177,11.8496,139.73,139.65,7.1597]
[1745245774377,30.10788113,139.72,139.65,7.1597]
[1745245774779,0.04577301,139.7,139.67,0.04542457]
[1745245775578,7.20317301,139.7,139.67,0.04542457]
[1745245775879,0.04577301,139.7,139.67,0.04542457]
[1745245776179,0.04577301,139.7,139.68,7.1583]
[1745245776775,0.04577301,139.7,139.69,7.1578]
[1745245777570,11.3014,139.76,139.72,7.1559]
[1745245777778,4.1471,139.76,139.72,7.1559]
[1745245778082,11.3014,139.76,139.68,31.22]
[1745245778277,368.8195,139.79,139.68,61.32788113]
[1745245778478,7.1539,139.77,139.69,4.1081]
[1745245778681,35.8402,139.85,139.69,4.1081]
[1745245778682,361.0,139.88,139.74,30.10788113]
[1745245778977,131.81834297,139.9,139.75,31.2]
[1745245779178,100.61834297,139.9,139.83,30.10788113]
[1745245779372,100.61834297,139.9,139.83,61.30788113]
[1745245779575,100.61834297,139.9,139.85,0.05420545]
[1745245780486,130.7262241,139.9,139.85,0.05420545]
[1745245780687,30.10788113,139.9,139.85,0.05420545]
[1745245780877,11.1409,139.89,139.85,0.05420545]
[1745245781080,3.993,139.89,139.85,0.05420545]
[1745245781385,30.10788113,139.87,139.77,31.2]
[1745245781686,30.10788113,139.84,139.77,31.2]
[1745245781884,68.45838113,139.84,139.77,31.2]
[1745245782086,30.10788113,139.81,139.73,31.2]
[1745245782285,8.1572,139.8,139.75,7.1546]
[1745245782586,0.04768619,139.79,139.76,0.0487164]
[1745245782779,0.04768619,139.79,139.77,7.1537]
[1745245782977,0.04768619,139.79,139.76,0.0487164]
[1745245783284,0.04768619,139.79,139.76,7.2026164]
[1745245783480,0.04768619,139.79,139.76,0.0487164]
[1745245784885,30.10788113,139.78,139.71,7.1564]
[1745245785086,30.10788113,139.78,139.7,31.2]
[1745245785691,7.1551,139.75,139.67,31.2]
[1745245785884,31.2,139.76,139.7,7.157]
[1745245786187,0.05261661,139.72,139.7,0.05271528]
[1745245786393,361.0,139.82,139.71,31.2]
[1745245787088,361.0,139.82,139.75,7.1543]
[1745245787485,30.16137861,139.8,139.77,0.05189424]
[1745245787685,31.2,139.79,139.77,0.05189424]
[1745245787882,7.1532,139.78,139.77,0.05189424]
[1745245788694,31.2,139.79,139.71,31.2]
[1745245789092,31.2,139.79,139.68,31.2]
[1745245789394,31.2,139.79,139.73,7.1554]
[1745245789594,31.2,139.79,139.68,31.2]
[1745245789794,7.1549,139.75,139.71,7.1567]
[1745245789997,7.20015835,139.75,139.72,0.05254523]
[1745245790295,0.04525835,139.75,139.72,0.05254523]
[1745245790797,0.04525835,139.75,139.72,7.20874523]
[1745245791198,0.04525835,139.75,139.72,0.05254523]
[1745245792102,31.2,139.82,139.73,30.10788113]
[1745245792394,31.2,139.82,139.68,30.10788113]
[1745245792601,361.0,139.81,139.69,31.2]
[1745245792797,361.0,139.81,139.71,30.10788113]
[1745245792998,7.1526,139.8,139.75,7.1544]
[1745245793299,0.05417272,139.79,139.77,0.0513908]
[1745245793499,3.8554,139.86,139.77,30.10788113]
[1745245793900,3.8707,139.85,139.77,30.10788113]
[1745245794099,3.8707,139.85,139.79,7.1522]
[1745245794302,3.8707,139.85,139.75,4.048]
[1745245794505,7.151,139.83,139.79,7.1523]
[1745245794700,0.02012342,139.81,139.79,0.04724425]
[1745245795005,0.02012342,139.81,139.79,7.19964425]
[1745245795203,0.02012342,139.81,139.79,0.04724425]
[1745245796303,7.17202342,139.81,139.79,0.04724425]
[1745245796505,0.02012342,139.81,139.79,0.04724425]
[1745245797306,0.02012342,139.81,139.8,7.1522]
[1745245797905,393.24,139.89,139.79,0.04724425]
[1745245798106,393.24,139.89,139.78,62.34788113]
[1745245798506,400.3879,139.89,139.78,62.34788113]
[1745245799103,400.3879,139.89,139.85,7.1492]
[1745245799304,4.1296,139.9,139.82,32.24]
[1745245799503,30.10788113,139.87,139.76,36.1482]
[1745245799703,7.1504,139.84,139.79,7.1524]
[1745245800009,32.22,139.87,139.76,66.25608113]
[1745245800207,32.22,139.87,139.79,30.10788113]
[1745245800408,361.0,139.89,139.8,32.22]
[1745245800799,0.04694447,139.86,139.83,0.04542876]
[1745245801605,0.04694447,139.86,139.84,32.22]
[1745245801808,7.1466,139.91,139.84,32.22]
[1745245802105,66.33708113,139.92,139.81,32.22]
[1745245802305,36.2292,139.92,139.81,32.22]
[1745245802509,36.2292,139.92,139.82,34.04018113]
[1745245802708,36.2292,139.92,139.87,7.1483]
[1745245802902,36.2292,139.92,139.86,0.05308143]
[1745245803206,36.2292,139.92,139.87,7.1486]
[1745245803403,32.22,139.92,139.86,0.05308143]
[1745245803606,62.32788113,139.95,139.86,0.05308143]
[1745245803802,66.38898113,139.95,139.85,32.22]
[1745245804011,66.38898113,139.95,139.89,0.04811132]
[1745245804212,4.0611,139.95,139.89,0.04811132]
[1745245804710,361.0,139.96,139.9,32.22]
[1745245805013,7.1427,139.99,139.9,32.22]
[1745245805206,62.32788113,140.01,139.9,40.152]
[1745245805707,6.58547074,140.03,139.94,0.05239552]
[1745245805907,6.58547074,140.03,139.95,32.22]
[1745245806108,7.1416,140.01,139.96,7.1437]
[1745245806308,6.58547074,140.03,139.98,0.05373754]
[1745245806612,7.1414,140.02,139.98,7.19663754]
[1745245806911,7.1414,140.02,139.98,0.05373754]
[1745245807211,7.1417,140.01,139.98,0.05373754]
[1745245807411,6.58547074,140.03,139.98,0.05373754]
[1745245808711,7.1416,140.01,139.98,0.05373754]
[1745245808913,6.58547074,140.03,139.98,0.05373754]
[1745245809210,6.58547074,140.03,139.99,7.1424]
[1745245809406,6.58547074,140.03,139.99,33.48]
[1745245809908,34.05618113,140.09,139.99,33.48]
[1745245810113,33.48,140.08,139.98,0.05373754]
[1745245810412,34.05618113,140.09,140.02,0.05340054]
[1745245810808,30.10788113,140.06,140.02,0.05340054]
[1745245811004,3.925,140.05,140.02,0.05340054]
[1745245811208,361.0,140.08,140.02,0.05340054]
[1745245811410,3.9483,140.09,140.02,0.05340054]
[1745245811907,30.10788113,140.07,140.02,0.05340054]
[1745245812511,8.0292,140.06,140.02,0.05340054]
[1745245812806,30.10788113,140.04,139.97,7.1434]
[1745245813011,8.0292,140.06,139.94,33.48]
[1745245813012,30.10788113,140.01,139.94,33.48]
[1745245813210,8.0292,140.06,139.94,33.48]
[1745245813411,30.10788113,139.98,139.91,33.48]
[1745245813716,30.10788113,139.95,139.88,33.48]
[1745245813918,30.10788113,139.95,139.88,40.6279]
[1745245814216,30.10788113,139.92,139.9,0.04558915]
[1745245814415,37.25438113,139.92,139.9,0.04558915]
[1745245814616,0.05138449,139.93,139.9,0.04558915]
[1745245815118,7.146,139.92,139.9,0.04558915]
[1745245815410,0.05138449,139.93,139.9,0.04558915]
[1745245815614,0.05138449,139.93,139.9,34.86558915]
[1745245815915,34.82,140.03,139.9,34.86558915]
[1745245815916,38.25478113,140.04,139.92,30.10788113]
[1745245816116,12.0932,140.04,139.92,30.10788113]
[1745245816311,34.82,140.06,139.92,30.10788113]
[1745245816517,361.0,140.07,139.95,30.10788113]
[1745245816712,30.10788113,140.08,139.96,34.82]
[1745245817022,30.10788113,140.08,140.01,0.04585216]
[1745245817219,46.9132,140.1,140.01,0.04585216]
[1745245817516,46.9132,140.1,140.0,34.82]
[1745245817717,46.9132,140.1,140.04,0.05168415]
[1745245818315,7.1384,140.07,140.04,0.05168415]
[1745245819517,95.47491401,140.1,140.04,0.05168415]
[1745245820418,95.47491401,140.1,140.04,7.19128415]
[1745245820619,95.47491401,140.1,140.04,0.05168415]
[1745245821120,7.1393,140.06,140.04,0.05168415]
[1745245821621,7.1386,140.07,140.04,0.05168415]
[1745245822426,95.47491401,140.1,140.04,0.05168415]
[1745245822724,46.9132,140.1,140.04,0.05168415]
[1745245822925,7.1385,140.07,140.04,0.05168415]
[1745245824325,7.1379,140.08,140.04,0.05168415]
[1745245824520,34.82,140.1,140.04,0.05168415]
[1745245824727,364.9584,140.11,140.05,7.139]
[1745245825223,364.9584,140.11,140.04,0.05168415]
[1745245825624,7.1379,140.08,140.04,0.05168415]
[1745245825824,364.9584,140.11,140.04,0.05168415]
[1745245826227,48.56171401,140.1,140.04,0.05168415]
[1745245826427,34.8,140.09,140.04,0.05168415]
[1745245826730,7.1394,140.05,140.04,0.05168415]
[1745245826930,48.56171401,140.07,139.94,4.1538]
[1745245827128,48.56171401,140.07,139.97,34.8]
[1745245827328,48.56171401,140.04,139.94,34.8]
[1745245827529,3.9767,140.03,139.94,34.8]
[1745245827725,48.56171401,140.01,139.91,34.8]
[1745245828026,0.04938298,139.97,139.95,0.05164609]
[1745245828326,7.144,139.96,139.91,7.1463]
[1745245828721,7.1448,139.95,139.9,7.1468]
[1745245828927,48.56171401,139.98,139.88,38.7244]